fUST/lending_fUST_20260626
["ID","MTS","AMOUNT","RATE_DAILY","PERIOD"]
[426489235,1782462638000,-984.54698412,0.00028207,2]
[426489238,1782462638000,-395.38776094,0.00028701,2]
[426489237,1782462638000,-3715.84202435,0.00028624,2]
[426489239,1782462638000,-11168.56,0.00028702,15]
[426489227,1782462638000,-326.88958823,0.0002673,7]
[426489284,1782462639000,-200.12832842,0.00029043,12]
[426489274,1782462639000,-727.09,0.00028946,15]
[426489276,1782462639000,-1163.35,0.00028953,15]
[426489278,1782462639000,-727.09,0.00028996,15]
[426489277,1782462639000,-153.07,0.00028996,15]
[426489269,1782462639000,-4108.352671,0.00028906,2]
[426489273,1782462639000,-153.07,0.00028946,15]
[426489268,1782462639000,-1163.35,0.00028903,15]
[426489285,1782462639000,-158.42520537,0.00029043,7]
[426489272,1782462639000,-830.27896868,0.00028943,2]
[426489275,1782462639000,-156.9,0.00028952,15]
[426489281,1782462639000,-1163.35,0.00029003,15]
[426489287,1782462639000,-158.0,0.00029043,10]
[426489282,1782462639000,-3853.42346978,0.00029043,2]
[426489283,1782462639000,-247.11197297,0.00029043,10]
[426489279,1782462639000,-160.0,0.00029,10]
[426489271,1782462639000,-205.479579,0.00028913,14]
[426489286,1782462639000,-181.16721858,0.00029043,7]
[426489290,1782462639000,-1448.18556755,0.00029043,2]
[426489288,1782462639000,-348.60425618,0.00029043,10]
[426489289,1782462639000,-248.44726962,0.00029043,10]
[426489291,1782462639000,-151.02579862,0.00029043,7]
[426489297,1782462639000,-151.765818,0.00029043,7]
[426489292,1782462639000,-962.29928664,0.00029043,7]
[426489294,1782462639000,-151.0,0.00029043,7]
[426489280,1782462639000,-156.9,0.00029002,15]
[426489270,1782462639000,-264.188027,0.00028913,14]
[426489264,1782462639000,-326.88958823,0.00028868,7]
[426489263,1782462639000,-1163.35,0.00028853,15]
[426489293,1782462639000,-161.83915959,0.00029043,12]
[426489240,1782462639000,-151.0,0.00028703,7]
[426489242,1782462639000,-291.54,0.00028703,20]
[426489241,1782462639000,-791.46298384,0.00028703,15]
[426489243,1782462639000,-500.0,0.00028713,2]
[426489245,1782462639000,-500.98606366,0.00028713,2]
[426489244,1782462639000,-500.0,0.00028713,2]
[426489247,1782462639000,-860.81315642,0.00028746,2]
[426489252,1782462639000,-188.28,0.00028752,15]
[426489250,1782462639000,-727.09,0.00028746,15]
[426489251,1782462639000,-156.9,0.00028752,15]
[426489248,1782462639000,-153.07,0.00028746,15]
[426489267,1782462639000,-156.9,0.00028902,15]
[426489246,1782462639000,-151.5,0.00028713,2]
[426489257,1782462639000,-156.9,0.00028802,15]
[426489255,1782462639000,-163.69,0.00028796,15]
[426489253,1782462639000,-1163.35,0.00028753,15]
[426489254,1782462639000,-153.07,0.00028796,15]
[426489256,1782462639000,-727.09,0.00028796,15]
[426489259,1782462639000,-1163.35,0.00028803,15]
[426489260,1782462639000,-153.07,0.00028846,15]
[426489261,1782462639000,-727.09,0.00028846,15]
[426489258,1782462639000,-188.29,0.00028802,15]
[426489265,1782462639000,-153.07,0.00028896,15]
[426489262,1782462639000,-156.9,0.00028852,15]
[426489266,1782462639000,-727.09,0.00028896,15]
[426489249,1782462639000,-163.66,0.00028746,15]
[426489295,1782462639000,-151.0,0.00029043,7]
[426489331,1782462639000,-160.0,0.00029361,2]
[426489298,1782462639000,-153.07,0.00029046,15]
[426489330,1782462639000,-160.0,0.00029361,2]
[426489329,1782462639000,-1163.35,0.00029353,15]
[426489335,1782462639000,-700.597765,0.000294,2]
[426489332,1782462639000,-153.07,0.00029396,15]
[426489334,1782462639000,-1683.977274,0.000294,2]
[426489333,1782462639000,-727.09,0.00029396,15]
[426489355,1782462639000,-173.79468045,0.00029653,15]
[426489336,1782462639000,-9293.615206,0.000294,2]
[426489337,1782462639000,-205.479576,0.000294,14]
[426489339,1782462639000,-153.07,0.00029446,15]
[426489340,1782462639000,-727.09,0.00029446,15]
[426489341,1782462639000,-1163.35,0.00029453,15]
[426489327,1782462639000,-153.07,0.00029346,15]
[426489342,1782462639000,-153.07,0.00029496,15]
[426489344,1782462639000,-1163.35,0.00029503,15]
[426489343,1782462639000,-727.09,0.00029496,15]
[426489345,1782462639000,-153.07,0.00029546,15]
[426489348,1782462639000,-179.0152,0.00029555,2]
[426489347,1782462639000,-1163.35,0.00029553,15]
[426489349,1782462639000,-153.07,0.00029596,15]
[426489351,1782462639000,-1163.35,0.00029603,15]
[426489352,1782462639000,-153.07,0.00029646,15]
[426489350,1782462639000,-727.09,0.00029596,15]
[426489353,1782462639000,-88.40381594,0.00029646,15]
[426489354,1782462639000,-638.68618406,0.00029646,15]
[426489296,1782462639000,-151.0,0.00029043,7]
[426489346,1782462639000,-727.09,0.00029546,15]
[426489324,1782462639000,-727.09,0.00029296,15]
[426489338,1782462639000,-1163.35,0.00029403,15]
[426489326,1782462639000,-1163.35,0.00029303,15]
[426489328,1782462639000,-727.09,0.00029346,15]
[426489303,1782462639000,-153.07,0.00029096,15]
[426489302,1782462639000,-272.74554212,0.00029086,2]
[426489301,1782462639000,-1163.35,0.00029053,15]
[426489299,1782462639000,-727.09,0.00029046,15]
[426489305,1782462639000,-156.9,0.00029102,15]
[426489304,1782462639000,-727.09,0.00029096,15]
[426489308,1782462639000,-153.07,0.00029146,15]
[426489307,1782462639000,-166.221649,0.00029109,14]
[426489309,1782462639000,-727.09,0.00029146,15]
[426489310,1782462639000,-156.9,0.00029152,15]
[426489312,1782462639000,-153.07,0.00029196,15]
[426489313,1782462639000,-727.09,0.00029196,15]
[426489306,1782462639000,-1163.35,0.00029103,15]
[426489300,1782462639000,-156.9,0.00029052,15]
[426489325,1782462639000,-1190.284,0.000293,2]
[426489323,1782462639000,-153.07,0.00029296,15]
[426489315,1782462639000,-1163.35,0.00029203,15]
[426489322,1782462639000,-193.44523926,0.00029295,7]
[426489321,1782462639000,-152.0,0.00029295,7]
[426489316,1782462639000,-153.07,0.00029246,15]
[426489320,1782462639000,-1163.35,0.00029253,15]
[426489317,1782462639000,-727.09,0.00029246,15]
[426489319,1782462639000,-156.91,0.00029252,15]
[426489311,1782462639000,-1163.35,0.00029153,15]
[426489314,1782462639000,-156.9,0.00029202,15]
[426489318,1782462639000,-177.226135,0.00029249,14]
[426489418,1782462641000,-1000.0,0.00029752,2]
[426489411,1782462641000,-312.157034,0.00029658,2]
[426489410,1782462641000,-989.55531955,0.00029653,15]
[426489413,1782462641000,-153.07,0.00029696,15]
[426489412,1782462641000,-1046.3716877,0.00029665,7]
[426489414,1782462641000,-727.09,0.00029696,15]
[426489416,1782462641000,-153.07,0.00029746,15]
[426489417,1782462641000,-727.09,0.00029746,15]
[426489419,1782462641000,-1000.0,0.00029752,2]
[426489429,1782462641000,-910.74453673,0.00029848,5]
[426489415,1782462641000,-1163.35,0.00029703,15]
[426489420,1782462641000,-1000.0,0.00029752,2]
[426489426,1782462641000,-1163.35,0.00029803,15]
[426489427,1782462641000,-153.07,0.00029846,15]
[426489423,1782462641000,-1163.35,0.00029753,15]
[426489428,1782462641000,-727.09,0.00029846,15]
[426489422,1782462641000,-1000.0,0.00029752,2]
[426489421,1782462641000,-1000.0,0.00029752,2]
[426489424,1782462641000,-153.07,0.00029796,15]
[426489425,1782462641000,-727.09,0.00029796,15]
[426489505,1782462647000,-1163.35,0.00029853,15]
[426489504,1782462647000,-89.25546327,0.00029848,5]
[426489507,1782462647000,-153.07,0.00029896,15]
[426489509,1782462647000,-860.81315642,0.000299,2]
[426489510,1782462647000,-1163.35,0.00029903,15]
[426489513,1782462647000,-727.09,0.00029946,15]
[426489508,1782462647000,-727.09,0.00029896,15]
[426489511,1782462647000,-326.88958826,0.00029938,7]
[426489520,1782462647000,-1000.0,0.00029999,2]
[426489515,1782462647000,-1163.35,0.00029953,15]
[426489517,1782462647000,-727.09,0.00029996,15]
[426489519,1782462647000,-1000.0,0.00029999,2]
[426489516,1782462647000,-153.07,0.00029996,15]
[426489518,1782462647000,-1000.0,0.00029999,2]
[426489522,1782462647000,-338.0,0.0003,7]
[426489521,1782462647000,-3161.11150761,0.0003,7]
[426489512,1782462647000,-153.07,0.00029946,15]
[426489799,1782462741000,160.0,0.00029043,30]
[426490243,1782462821000,417.15472785,0.00029043,30]
[426490443,1782463531000,508.89564879,0.00029999,30]
[426490444,1782463586000,600.91434064,0.00029999,30]
[426490445,1782463661000,160.0,0.00029043,30]
[426490447,1782463774000,-261.50889223,0.00016438,3]
[426490446,1782463774000,-300.0,0.0001595,13]
[426490486,1782463831000,-150.16,0.00028923,15]
[426490469,1782463831000,-229.55,0.00026344,2]
[426490482,1782463831000,-150.16,0.00028823,15]
[426490476,1782463831000,-207.8619948,0.00028011,2]
[426490481,1782463831000,-150.16,0.00028773,15]
[426490474,1782463831000,-198.200735,0.00027983,2]
[426490471,1782463831000,-266.588203,0.00027966,2]
[426490478,1782463831000,-1380.7556791,0.00028553,2]
[426490473,1782463831000,-747.0494249,0.0002798,2]
[426490484,1782463831000,-150.16,0.00028873,15]
[426490490,1782463831000,-150.16,0.00029023,15]
[426490494,1782463831000,-150.16,0.00029073,15]
[426490492,1782463831000,-161.3356276,0.00029044,2]
[426490512,1782463831000,-150.16,0.00029523,15]
[426490488,1782463831000,-150.16,0.00028973,15]
[426490503,1782463831000,-150.16,0.00029323,15]
[426490501,1782463831000,-150.16,0.00029273,15]
[426490509,1782463831000,-150.16,0.00029473,15]
[426490511,1782463831000,-161.78328616,0.00029473,23]
[426490495,1782463831000,-150.16,0.00029123,15]
[426490505,1782463831000,-150.16,0.00029373,15]
[426490498,1782463831000,-150.16,0.00029173,15]
[426490499,1782463831000,-150.16,0.00029223,15]
[426490507,1782463831000,-150.16,0.00029423,15]
[426490520,1782463832000,-5576.1302633,0.00029679,2]
[426490531,1782463832000,-500.0,0.00029761,7]
[426490514,1782463832000,-150.16,0.00029573,15]
[426490516,1782463832000,-150.16,0.00029623,15]
[426490518,1782463832000,-150.16,0.00029673,15]
[426490522,1782463832000,-150.16,0.00029723,15]
[426490526,1782463832000,-500.0,0.00029761,7]
[426490529,1782463832000,-500.0,0.00029761,7]
[426490533,1782463832000,-500.0,0.00029761,7]
[426490527,1782463832000,-500.0,0.00029761,7]
[426490541,1782463832000,-500.0,0.00029761,7]
[426490536,1782463832000,-500.0,0.00029761,7]
[426490538,1782463832000,-500.0,0.00029761,7]
[426490539,1782463832000,-254.23450166,0.00029761,7]
[426490540,1782463832000,-245.76549834,0.00029761,7]
[426490546,1782463832000,-134.24275759,0.00029761,7]
[426490543,1782463832000,-320.81182996,0.00029761,7]
[426490544,1782463832000,-14.25724241,0.00029761,7]
[426490542,1782463832000,-53.99977902,0.00029761,7]
[426490545,1782463832000,-151.5,0.00029761,7]
[426490524,1782463832000,-500.0,0.00029761,7]
[426490594,1782463840000,-17.25724241,0.00029761,7]
[426490595,1782463840000,-151.5,0.00029761,7]
[426490596,1782463840000,-188.40394125,0.00029761,7]
[426490601,1782463840000,-183.52707048,0.000299,7]
[426490606,1782463840000,-10110.9300272,0.0003,7]
[426490605,1782463840000,-386.15,0.00029999,7]
[426490598,1782463840000,-150.16,0.00029823,15]
[426490599,1782463840000,-150.16,0.00029873,15]
[426490603,1782463840000,-1769.09576328,0.000299,2]
[426490602,1782463840000,-247.71664483,0.000299,2]
[426490600,1782463840000,-201.30292952,0.000299,7]
[426490604,1782463840000,-150.17,0.00029923,15]
[426490597,1782463840000,-150.16,0.00029773,15]
[426490654,1782463843000,-4902.37248574,0.0003,7]
[426490632,1782463843000,-613.18513893,0.0003,7]
[426490677,1782463846000,-22288.98093896,0.0003,7]
[426490685,1782463846000,-36.80288496,0.0003,7]
[426490676,1782463846000,-163.63250448,0.00016274,7]
[426490679,1782463846000,-386.15,0.0003,7]
[426490683,1782463846000,-937.83668519,0.0003,7]
[426490680,1782463846000,-1000.0,0.0003,7]
[426490684,1782463846000,-1000.0,0.0003,7]
[426490678,1782463846000,-11198.53143915,0.0003,2]
[426490682,1782463846000,-62.16331481,0.0003,7]
[426490681,1782463846000,-1000.0,0.0003,7]
[426490689,1782463990000,199.25658506,0.000275,30]
[426490690,1782464006000,545.72319982,0.00029999,30]
[426490692,1782464246000,2177.33601732,0.00029045,30]
[426490693,1782464253000,73422.40873181,7.6e-05,2]
[426490696,1782464511000,-306.84,0.00017642,2]
[426490698,1782464641000,417.15472785,0.00029042,30]
[426490720,1782464880000,199.25658506,0.000275,30]
[426490750,1782465032000,-799.77576138,0.00015621,13]
[426490770,1782465038000,-500.0,0.00017998,2]
[426490766,1782465038000,-332.52,0.00017642,2]
[426490768,1782465038000,-500.0,0.00017998,2]
[426490758,1782465038000,-3431.17298948,0.00015621,13]
[426490772,1782465038000,-500.0,0.00017998,2]
[426490759,1782465038000,-769.05124914,0.00015621,13]
[426490764,1782465038000,-332.53,0.00016735,2]
[426490765,1782465038000,-332.52,0.0001676,2]
[426490762,1782465038000,-2683.01149073,0.00015779,13]
[426490760,1782465038000,-42.45989538,0.00015779,13]
[426490767,1782465038000,-500.0,0.00017998,2]
[426490771,1782465038000,-500.0,0.00017998,2]
[426490769,1782465038000,-500.0,0.00017998,2]
[426490763,1782465038000,-336.554364,0.00015938,13]
[426490775,1782465038000,-500.0,0.00017998,2]
[426490774,1782465038000,-500.0,0.00017998,2]
[426490777,1782465038000,-443.7900596,0.00017998,2]
[426490773,1782465038000,-500.0,0.00017998,2]
[426490776,1782465038000,-500.0,0.00017998,2]
[426490761,1782465038000,-439.34694835,0.00015779,13]
[426490809,1782465043000,-629.94531552,0.00015465,13]
[426490811,1782465043000,-46.13619919,0.00015465,13]
[426490810,1782465043000,-760.50326922,0.00015465,13]
[426490837,1782465046000,-72.10848749,0.00017998,2]
[426490838,1782465046000,-500.0,0.00017998,2]
[426490836,1782465046000,-971.77996777,0.00015465,13]
[426490869,1782465047000,-1145.63837261,0.00018,2]
[426490867,1782465047000,-500.0,0.00017998,2]
[426490862,1782465047000,-500.0,0.00017998,2]
[426490868,1782465047000,-10797.98820971,0.00018,2]
[426490875,1782465047000,-381.20380939,0.0002321,6]
[426490873,1782465047000,-250.90147616,0.00022279,2]
[426490872,1782465047000,-397.1605523,0.00022261,3]
[426490878,1782465047000,-1547.95879287,0.00026153,2]
[426490870,1782465047000,-703.3051447,0.00021552,2]
[426490881,1782465047000,-200.7139739,0.00026506,2]
[426490880,1782465047000,-435.96502342,0.00026427,2]
[426490874,1782465047000,-6353.7043944,0.00022316,2]
[426490871,1782465047000,-179.33092656,0.000217,2]
[426490877,1782465047000,-1588.6422092,0.00025675,3]
[426490863,1782465047000,-500.0,0.00017998,2]
[426490876,1782465047000,-396.77249023,0.00023905,6]
[426490864,1782465047000,-500.0,0.00017998,2]
[426490847,1782465047000,-500.0,0.00017998,2]
[426490860,1782465047000,-500.0,0.00017998,2]
[426490845,1782465047000,-500.0,0.00017998,2]
[426490879,1782465047000,-1265.94926045,0.00026253,2]
[426490840,1782465047000,-350.53165792,0.00017998,2]
[426490849,1782465047000,-500.0,0.00017998,2]
[426490851,1782465047000,-500.0,0.00017998,2]
[426490839,1782465047000,-500.0,0.00017998,2]
[426490843,1782465047000,-500.0,0.00017998,2]
[426490866,1782465047000,-500.0,0.00017998,2]
[426490853,1782465047000,-500.0,0.00017998,2]
[426490842,1782465047000,-500.0,0.00017998,2]
[426490854,1782465047000,-500.0,0.00017998,2]
[426490855,1782465047000,-547.52750938,0.00017998,2]
[426490857,1782465047000,-500.0,0.00017998,2]
[426490861,1782465047000,-500.0,0.00017998,2]
[426490865,1782465047000,-500.0,0.00017998,2]
[426490858,1782465047000,-500.0,0.00017998,2]
[426490841,1782465047000,-500.0,0.00017998,2]
[426490892,1782465047000,-675.04841246,0.00029765,2]
[426490859,1782465047000,-500.0,0.00017998,2]
[426490882,1782465047000,-151.12996951,0.00028891,14]
[426490895,1782465047000,-151.0,0.00029765,7]
[426490908,1782465047000,-152.0,0.00029977,7]
[426490918,1782465047000,-151.0,0.00029999,7]
[426490909,1782465047000,-200.0,0.00029999,10]
[426490919,1782465047000,-151.0,0.00029999,7]
[426490912,1782465047000,-1000.0,0.00029999,2]
[426490907,1782465047000,-160.0,0.00029935,2]
[426490905,1782465047000,-569.74828306,0.000299,2]
[426490911,1782465047000,-1000.0,0.00029999,2]
[426490913,1782465047000,-1000.0,0.00029999,2]
[426490917,1782465047000,-151.0,0.00029999,7]
[426490915,1782465047000,-1000.0,0.00029999,2]
[426490914,1782465047000,-1000.0,0.00029999,2]
[426490916,1782465047000,-1075.82075266,0.00029999,2]
[426490920,1782465047000,-82945.03657627,0.0003,2]
[426490883,1782465047000,-2000.0,0.00028979,7]
[426490910,1782465047000,-1000.0,0.00029999,2]
[426490903,1782465047000,-3307.867165,0.00029891,2]
[426490856,1782465047000,-500.0,0.00017998,2]
[426490899,1782465047000,-151.5,0.00029872,15]
[426490885,1782465047000,-569.74828306,0.00029652,2]
[426490893,1782465047000,-151.0,0.00029765,7]
[426490884,1782465047000,-9549.69562721,0.00029042,2]
[426490886,1782465047000,-569.74828306,0.00029714,2]
[426490889,1782465047000,-214.61784699,0.00029752,2]
[426490891,1782465047000,-320.94288762,0.00029752,2]
[426490887,1782465047000,-315.91364319,0.00029752,2]
[426490890,1782465047000,-858.47138795,0.00029752,2]
[426490894,1782465047000,-151.0,0.00029765,7]
[426490906,1782465047000,-160.0,0.00029935,2]
[426490901,1782465047000,-194.0681874,0.00029872,15]
[426490896,1782465047000,-569.74828306,0.00029776,2]
[426490897,1782465047000,-300.0,0.00029781,14]
[426490900,1782465047000,-151.5,0.00029872,15]
[426490898,1782465047000,-569.74828306,0.00029838,2]
[426490902,1782465047000,-276.77143266,0.0002989,2]
[426490888,1782465047000,-315.125188,0.00029752,2]
[426490904,1782465047000,-824.0903531,0.000299,2]
[426490925,1782466056000,775.0,0.00029041,30]
[426490929,1782466179000,547.5220906,0.00030136,120]
[426490973,1782466232000,-518.256209,0.00029428,2]
[426490960,1782466232000,-234.70364582,0.00026442,2]
[426490971,1782466232000,-200.0,0.000291,2]
[426490949,1782466232000,-170.36,0.00019178,2]
[426490951,1782466232000,-1428.1574314,0.00022753,2]
[426490956,1782466232000,-361.26708095,0.00023801,6]
[426490958,1782466232000,-231.02578895,0.00026442,2]
[426490962,1782466232000,-1587.08996091,0.00026759,6]
[426490954,1782466232000,-186.9755603,0.00023801,6]
[426490964,1782466232000,-332.52,0.00027541,2]
[426490952,1782466232000,-421.6277565,0.00022753,2]
[426490969,1782466232000,-332.52,0.0002899,2]
[426490977,1782466232000,-709.50547435,0.00029895,2]
[426490983,1782466232000,-697.82618507,0.00029895,2]
[426490979,1782466232000,-1206.73715478,0.00029895,2]
[426490981,1782466232000,-70.37269905,0.00029895,2]
[426490975,1782466232000,-300.0,0.00029814,14]
[426490987,1782466232000,-639.74378917,0.00029895,2]
[426490985,1782466232000,-1550.49970149,0.00029895,2]
[426490989,1782466232000,-947.26633091,0.00029895,2]
[426490991,1782466232000,-984.29429197,0.00029895,2]
[426490993,1782466232000,-93.31389925,0.00029895,2]
[426490967,1782466232000,-230.44919631,0.0002794,2]
[426491085,1782466238000,-215.13306518,0.00029895,2]
[426491084,1782466238000,-332.53,0.00020137,2]
[426491093,1782466240000,-255.77321938,0.00029895,2]
[426491110,1782466247000,-152.0,0.00029954,7]
[426491104,1782466247000,-650.86695862,0.00029895,2]
[426491105,1782466247000,-769.15099618,0.000299,2]
[426491106,1782466247000,-2427.20699258,0.000299,2]
[426491107,1782466247000,-593.46670325,0.000299,2]
[426491109,1782466247000,-152.0,0.00029954,7]
[426491108,1782466247000,-152.0,0.00029954,7]
[426491112,1782466247000,-152.0,0.00029982,7]
[426491116,1782466247000,-500.0,0.00029998,2]
[426491113,1782466247000,-152.0,0.00029982,7]
[426491114,1782466247000,-159.65241771,0.00029982,7]
[426491117,1782466247000,-223.98872746,0.00029998,2]
[426491111,1782466247000,-289.0,0.00029954,7]
[426491115,1782466247000,-500.0,0.00029998,2]
[426491120,1782466247000,-193.74000286,0.00029999,2]
[426491121,1782466247000,-6361.97983014,0.0003,2]
[426491118,1782466247000,-394.16972326,0.00029998,2]
[426491119,1782466247000,-372.28129532,0.00029998,2]
[426491156,1782466305000,1458.0,0.0003013,30]
[426491171,1782466460000,417.15472785,0.00029041,30]
[426491172,1782466505000,373.33,0.00029041,120]
[426491245,1782467432000,-630.966,0.00025952,2]
[426491480,1782467440000,-300.0,0.00025692,13]
[426491481,1782467440000,-893.84923756,0.00025952,2]
[426491482,1782467440000,-3157.08184376,0.00027228,2]
[426491484,1782467442000,-330.85,0.0002725,2]
[426491488,1782467442000,-2157.99476495,0.00028278,2]
[426491487,1782467442000,-353.1526622,0.00028278,2]
[426491486,1782467442000,-300.0,0.00028277,2]
[426491483,1782467442000,-413.87056828,0.00027228,2]
[426491489,1782467442000,-3433.88555178,0.00028405,2]
[426491491,1782467442000,-300.0,0.00029814,14]
[426491492,1782467442000,-1151.53882051,0.000299,2]
[426491485,1782467442000,-330.85,0.00027541,2]
[426491493,1782467442000,-717.87426312,0.000299,2]
[426491500,1782467442000,-72785.5479171,0.0003,2]
[426491499,1782467442000,-38529.46518721,0.0003,2]
[426491498,1782467442000,-55124.96697567,0.0003,2]
[426491490,1782467442000,-747.15433896,0.00028773,6]
[426491496,1782467442000,-433.73218577,0.00029999,2]
[426491495,1782467442000,-201.49151382,0.00029999,2]
[426491494,1782467442000,-3278.06799162,0.000299,2]
[426491497,1782467442000,-14271.22332934,0.0003,2]
[426491742,1782467447000,-1000.0,0.0003,14]
[426491740,1782467447000,-326.88958824,0.0003,7]
[426491738,1782467447000,-6921.64399533,0.0003,2]
[426491745,1782467447000,-1163.35,0.00030003,15]
[426491749,1782467447000,-165.75,0.00030041,2]
[426491751,1782467447000,-165.75,0.00030041,2]
[426491760,1782467447000,-675.51734934,0.00030046,15]
[426491758,1782467447000,-153.07,0.00030046,15]
[426491754,1782467447000,-165.75,0.00030041,2]
[426491756,1782467447000,-165.75,0.00030041,2]
[426491747,1782467447000,-165.76,0.00030041,2]
[426491753,1782467447000,-165.75,0.00030041,2]
[426491996,1782467845000,1064.0,0.00029045,30]
[426492065,1782468279000,417.15472785,0.00029048,30]
[426492523,1782468644000,-92.93536174,0.00030396,15]
[426492498,1782468644000,-336.58,0.00030137,2]
[426492500,1782468644000,-261.06,0.00030137,30]
[426492491,1782468644000,-727.09,0.00030096,15]
[426492499,1782468644000,-151.0,0.00030137,6]
[426492490,1782468644000,-153.07,0.00030096,15]
[426492487,1782468644000,-51.57265066,0.00030046,15]
[426492488,1782468644000,-1163.35,0.00030053,15]
[426492486,1782468644000,-324.08598387,0.00030045,2]
[426492482,1782468644000,-300.0,0.00029885,14]
[426492489,1782468644000,-173.81,0.00030079,2]
[426492480,1782468644000,-4359.5572748,0.0002975,2]
[426492481,1782468644000,-3372.63621669,0.0002975,2]
[426492485,1782468644000,-500.0,0.00030045,2]
[426492476,1782468644000,-1445.06832378,0.00025899,2]
[426492474,1782468644000,-375.49595539,0.00024488,2]
[426492479,1782468644000,-4758.6639536,0.00029048,2]
[426492484,1782468644000,-1000.0,0.0003,14]
[426492478,1782468644000,-2045.13294523,0.00028499,2]
[426492473,1782468644000,-1018.00123021,0.00015,7]
[426492522,1782468644000,-727.09,0.00030346,15]
[426492483,1782468644000,-158.24932335,0.00029999,2]
[426492497,1782468644000,-1178.03,0.00030137,7]
[426492496,1782468644000,-1851.19,0.00030137,2]
[426492494,1782468644000,-1163.35,0.00030103,15]
[426492518,1782468644000,-1163.64,0.00030253,15]
[426492521,1782468644000,-153.07,0.00030346,15]
[426492520,1782468644000,-727.09,0.00030296,15]
[426492492,1782468644000,-288.25,0.000301,2]
[426492519,1782468644000,-153.07,0.00030296,15]
[426492514,1782468644000,-153.07,0.00030246,15]
[426492512,1782468644000,-727.09,0.00030196,15]
[426492513,1782468644000,-1163.35,0.00030203,15]
[426492511,1782468644000,-153.07,0.00030196,15]
[426492502,1782468644000,-161.83915959,0.00030137,2]
[426492504,1782468644000,-176.55181047,0.00030137,2]
[426492516,1782468644000,-727.09,0.00030246,15]
[426492503,1782468644000,-310.98598312,0.00030137,12]
[426492510,1782468644000,-1163.35,0.00030153,15]
[426492495,1782468644000,-480.18635555,0.00030136,14]
[426492501,1782468644000,-261.06,0.00030137,30]
[426492505,1782468644000,-634.60307667,0.00030137,30]
[426492493,1782468644000,-150.0,0.000301,10]
[426492507,1782468644000,-2099.83657011,0.00030138,120]
[426492508,1782468644000,-153.07,0.00030146,15]
[426492509,1782468644000,-727.09,0.00030146,15]
[426492506,1782468644000,-620.73015383,0.00030137,30]
[426492775,1782468697000,12257.3705955,0.00030059,120]
[426492816,1782469233000,2699.53486264,0.0001,10]
[426492887,1782469832000,-162.0,0.0003,2]
[426492880,1782469832000,-306.84,0.0002079,2]
[426492879,1782469832000,-306.84,0.0001881,2]
[426492881,1782469832000,-185.38745563,0.00028539,2]
[426492886,1782469832000,-162.0,0.0003,2]
[426492882,1782469832000,-180.629576,0.00029055,10]
[426492873,1782469832000,-170.65118008,0.00017888,2]
[426492883,1782469832000,-1189.798289,0.0002939,2]
[426492884,1782469832000,-300.0,0.00029956,14]
[426492876,1782469832000,-1070.20752218,0.00017888,2]
[426492878,1782469832000,-550.0,0.0001826,2]
[426492871,1782469832000,-271.31828053,0.00017709,2]
[426492889,1782469832000,-162.0,0.0003,2]
[426492885,1782469832000,-300.0,0.00029999,2]
[426492890,1782469832000,-162.0,0.0003,2]
[426492894,1782469832000,-269.0,0.0003,2]
[426492892,1782469832000,-269.0,0.0003,2]
[426492888,1782469832000,-162.0,0.0003,2]
[426492905,1782469832000,-60.13463826,0.00030396,15]
[426492904,1782469832000,-168.82297,0.00030044,2]